fUST/lending_fUST_20241219
["ID","MTS","AMOUNT","RATE_DAILY","PERIOD"]
[345904812,1734537690400,-10000.0,0.00024168,30]
[345904813,1734537723160,240.0,0.00024,120]
[345904829,1734538232320,-300.0,0.00019999,2]
[345904830,1734538232331,-300.0,0.00019999,2]
[345904831,1734538232341,-1161.0,0.0002,3]
[345904832,1734538232351,-1158.0,0.0002,3]
[345904833,1734538232361,-1158.0,0.0002,3]
[345904834,1734538232370,-1158.0,0.0002,3]
[345904835,1734538232379,-1027.0,0.0002,3]
[345904836,1734538232388,-1025.0,0.0002,3]
[345904837,1734538232398,-1025.0,0.0002,3]
[345904838,1734538232408,-1025.0,0.0002,3]
[345904839,1734538232417,-420.0,0.00021777,2]
[345904840,1734538232428,-420.0,0.00021999,2]
[345904841,1734538232437,-296.9693203,0.00022742,2]
[345904842,1734538232447,-327.511,0.000228,2]
[345904843,1734538232456,-5164.75756255,0.00023573,2]
[345904844,1734538232466,-587.0,0.00023712,2]
[345904845,1734538232475,-2553.60303327,0.00024,4]
[345904846,1734538232487,-143.62319635,0.00024,4]
[345904847,1734538232496,-651.87544185,0.00024,24]
[345904848,1734538232589,-348.12455815,0.00024,24]
[345904849,1734538232598,-180.56310664,0.00024062,2]
[345904850,1734538232608,-211.99268412,0.00024064,2]
[345904851,1734538232617,-211.99268411,0.00024066,2]
[345904852,1734538232627,-211.99268411,0.00024069,2]
[345904853,1734538232635,-161.33428287,0.00024071,2]
[345904895,1734538237983,-50.65840124,0.00024071,2]
[345904897,1734538237992,-211.99268411,0.00024073,2]
[345904899,1734538238002,-505.35528582,0.00024099,3]
[345904901,1734538238011,-274.39362883,0.000241,2]
[345904928,1734538238249,-6277.95289386,0.000241,2]
[345904963,1734538240023,-427.63664462,0.000241,2]
[345904969,1734538240077,-691.9738815,0.000241,2]
[345904970,1734538240131,-9678.35394557,0.000241,2]
[345904971,1734538240141,-351.8818442,0.000241,2]
[345904972,1734538240151,-161.6495656,0.00024145,2]
[345904973,1734538240161,-500.0,0.00024161,2]
[345904974,1734538240171,-500.0,0.00024161,2]
[345904975,1734538240180,-500.0,0.00024161,2]
[345904976,1734538240190,-500.0,0.00024161,2]
[345904977,1734538240199,-500.0,0.00024161,2]
[345904978,1734538240209,-500.0,0.00024161,2]
[345904979,1734538240219,-500.0,0.00024161,2]
[345904980,1734538240229,-500.0,0.00024161,2]
[345904981,1734538240237,-500.0,0.00024161,2]
[345904982,1734538240247,-500.0,0.00024161,2]
[345904983,1734538240257,-500.0,0.00024161,2]
[345904984,1734538240267,-500.0,0.00024161,2]
[345904985,1734538240276,-500.0,0.00024161,2]
[345904986,1734538240286,-500.0,0.00024161,2]
[345904987,1734538240296,-500.0,0.00024161,2]
[345904988,1734538240305,-500.0,0.00024161,2]
[345904989,1734538240316,-500.0,0.00024161,2]
[345904990,1734538240325,-440.44583046,0.00024161,2]
[345904991,1734538240335,-500.0,0.00024161,2]
[345904992,1734538240345,-500.0,0.00024161,2]
[345904993,1734538240354,-500.0,0.00024161,2]
[345904994,1734538240364,-500.0,0.00024161,2]
[345904995,1734538240373,-500.0,0.00024161,2]
[345904996,1734538240383,-500.0,0.00024161,2]
[345904997,1734538240392,-500.0,0.00024161,2]
[345904998,1734538240401,-500.0,0.00024161,2]
[345904999,1734538240411,-356.90370897,0.00024161,2]
[345905000,1734538240420,-500.0,0.00024161,2]
[345905001,1734538240429,-500.0,0.00024161,2]
[345905002,1734538240438,-500.0,0.00024161,2]
[345905003,1734538240447,-500.0,0.00024161,2]
[345905004,1734538240457,-500.0,0.00024161,2]
[345905005,1734538240466,-500.0,0.00024161,2]
[345905006,1734538240475,-500.0,0.00024161,2]
[345905007,1734538240485,-500.0,0.00024161,2]
[345905008,1734538240495,-500.0,0.00024161,2]
[345905009,1734538240504,-500.0,0.00024161,2]
[345905010,1734538240513,-500.0,0.00024161,2]
[345905011,1734538240523,-500.0,0.00024161,2]
[345905012,1734538240532,-361.68682479,0.00024161,2]
[345905013,1734538240543,-500.0,0.00024161,2]
[345905014,1734538240552,-500.0,0.00024161,2]
[345905015,1734538240564,-375.52114701,0.00024161,2]
[345905016,1734538240574,-500.0,0.00024161,2]
[345905017,1734538240584,-500.0,0.00024161,2]
[345905018,1734538240594,-500.0,0.00024161,2]
[345905019,1734538240603,-500.0,0.00024161,2]
[345905020,1734538240613,-500.0,0.00024161,2]
[345905021,1734538240622,-500.0,0.00024161,2]
[345905022,1734538240632,-500.0,0.00024161,2]
[345905023,1734538240641,-500.0,0.00024161,2]
[345905024,1734538240651,-500.0,0.00024161,2]
[345905025,1734538240660,-500.0,0.00024161,2]
[345905026,1734538240669,-500.0,0.00024161,2]
[345905027,1734538240678,-583.13757434,0.00024161,2]
[345905028,1734538240687,-200.0,0.00024161,2]
[345905029,1734538240696,-340.41955906,0.00024161,2]
[345905030,1734538240707,-159.58044094,0.00024161,2]
[345905031,1734538240716,-500.0,0.00024161,2]
[345905032,1734538240725,-500.0,0.00024161,2]
[345905033,1734538240734,-447.23859373,0.00024161,2]
[345905067,1734538242963,-1141.963903,0.000241,2]
[345905068,1734538242972,-129.60069592,0.00024161,2]
[345905073,1734538243016,-67.96032004,0.00024161,2]
[345905074,1734538243026,-52.76140627,0.00024161,2]
[345905076,1734538243036,-500.0,0.00024161,2]
[345905078,1734538243046,-500.0,0.00024161,2]
[345905080,1734538243055,-500.0,0.00024161,2]
[345905081,1734538243067,-500.0,0.00024161,2]
[345905083,1734538243077,-500.0,0.00024161,2]
[345905085,1734538243087,-500.0,0.00024161,2]
[345905087,1734538243097,-500.0,0.00024161,2]
[345905088,1734538243107,-500.0,0.00024161,2]
[345905089,1734538243116,-500.0,0.00024161,2]
[345905090,1734538243126,-500.0,0.00024161,2]
[345905091,1734538243137,-500.0,0.00024161,2]
[345905092,1734538243147,-500.0,0.00024161,2]
[345905093,1734538243157,-500.0,0.00024161,2]
[345905094,1734538243167,-500.0,0.00024161,2]
[345905095,1734538243177,-500.0,0.00024161,2]
[345905096,1734538243186,-500.0,0.00024161,2]
[345905097,1734538243196,-500.0,0.00024161,2]
[345905098,1734538243206,-500.0,0.00024161,2]
[345905099,1734538243216,-500.0,0.00024161,2]
[345905100,1734538243226,-500.0,0.00024161,2]
[345905101,1734538243235,-500.0,0.00024161,2]
[345905102,1734538243245,-500.0,0.00024161,2]
[345905103,1734538243255,-500.0,0.00024161,2]
[345905104,1734538243264,-500.0,0.00024161,2]
[345905105,1734538243274,-500.0,0.00024161,2]
[345905106,1734538243283,-500.0,0.00024161,2]
[345905107,1734538243293,-500.0,0.00024161,2]
[345905108,1734538243303,-500.0,0.00024161,2]
[345905109,1734538243312,-500.0,0.00024161,2]
[345905110,1734538243326,-500.0,0.00024161,2]
[345905111,1734538243336,-348.9316787,0.00024161,2]
[345905112,1734538243345,-276.95771821,0.00024161,2]
[345905113,1734538243362,-223.04228179,0.00024161,2]
[345905114,1734538243372,-498.22770921,0.00024161,2]
[345905115,1734538243384,-1.77229079,0.00024161,2]
[345905116,1734538243394,-500.0,0.00024161,2]
[345905117,1734538243404,-500.0,0.00024161,2]
[345905118,1734538243415,-500.0,0.00024161,2]
[345905119,1734538243425,-500.0,0.00024161,2]
[345905120,1734538243436,-500.0,0.00024161,2]
[345905121,1734538243449,-500.0,0.00024161,2]
[345905122,1734538243460,-500.0,0.00024161,2]
[345905123,1734538243470,-500.0,0.00024161,2]
[345905124,1734538243481,-375.89541114,0.00024161,2]
[345905159,1734538246017,-124.10458886,0.00024161,2]
[345905161,1734538246027,-500.0,0.00024161,2]
[345905162,1734538246038,-180.54081321,0.00024161,2]
[345905164,1734538246047,-500.0,0.00024161,2]
[345905165,1734538246057,-500.0,0.00024161,2]
[345905166,1734538246068,-500.0,0.00024161,2]
[345905167,1734538246079,-500.0,0.00024161,2]
[345905168,1734538246089,-500.0,0.00024161,2]
[345905169,1734538246099,-500.0,0.00024161,2]
[345905170,1734538246108,-500.0,0.00024161,2]
[345905171,1734538246118,-500.0,0.00024161,2]
[345905172,1734538246127,-500.0,0.00024161,2]
[345905173,1734538246137,-500.0,0.00024161,2]
[345905174,1734538246146,-500.0,0.00024161,2]
[345905175,1734538246155,-500.0,0.00024161,2]
[345905176,1734538246165,-513.71566588,0.00024161,2]
[345905177,1734538246175,-500.0,0.00024161,2]
[345905178,1734538246184,-500.0,0.00024161,2]
[345905179,1734538246194,-500.0,0.00024161,2]
[345905180,1734538246203,-66.54673885,0.00024161,2]
[345905181,1734538293634,255.01,0.00016161,2]
[345905195,1734538697521,163.114782,0.00013973,2]
[345905207,1734539319767,339.48439212,0.00025,120]
[345905275,1734539435055,-1000.0,0.00022,22]
[345905276,1734539435064,-734.89632514,0.00022046,10]
[345905277,1734539435112,-362.8,0.00022046,10]
[345905278,1734539435124,-259.75,0.00022046,10]
[345905326,1734539438204,-3218.26364134,0.00022046,10]
[345905327,1734539438213,-300.0,0.00022267,2]
[345905328,1734539438223,-300.0,0.00022267,2]
[345905329,1734539438233,-8258.5169091,0.00022268,2]
[345905330,1734539438243,-191.745194,0.00022813,2]
[345905331,1734539438254,-672.205567,0.00022813,2]
[345905332,1734539438263,-339.573,0.0002295,2]
[345905333,1734539438273,-1000.0,0.00023,23]
[345905334,1734539438282,-168.53955767,0.000237,2]
[345905335,1734539438291,-500.0,0.00023773,2]
[345905336,1734539438300,-500.0,0.00023799,2]
[345905337,1734539438310,-575.11371117,0.00023799,2]
[345905338,1734539438319,-500.0,0.00023799,2]
[345905340,1734539438329,-500.0,0.00023799,2]
[345905341,1734539438339,-500.0,0.00023799,2]
[345905342,1734539438349,-159.5039745,0.00023799,2]
[345905343,1734539438359,-208.39123856,0.00023799,2]
[345905344,1734539438368,-500.0,0.00023799,2]
[345905345,1734539438378,-206.85409164,0.00023799,2]
[345905346,1734539438389,-289.00309454,0.00023799,2]
[345905347,1734539438398,-500.0,0.00023799,2]
[345905358,1734539438408,-500.0,0.00023799,2]
[345905360,1734539438656,-500.0,0.00023799,2]
[345905362,1734539438666,-500.0,0.00023799,2]
[345905364,1734539438676,-500.0,0.00023799,2]
[345905365,1734539438686,-500.0,0.00023799,2]
[345905366,1734539438696,-500.0,0.00023799,2]
[345905367,1734539438706,-500.0,0.00023799,2]
[345905368,1734539438716,-220.23203188,0.00023799,2]
[345905369,1734539438725,-500.0,0.00023799,2]
[345905370,1734539438735,-500.0,0.00023799,2]
[345905371,1734539438744,-500.0,0.00023799,2]
[345905372,1734539438754,-500.0,0.00023799,2]
[345905373,1734539438763,-500.0,0.00023799,2]
[345905374,1734539438772,-500.0,0.00023799,2]
[345905375,1734539438782,-436.7063361,0.00023799,2]
[345905376,1734539438791,-500.0,0.00023799,2]
[345905378,1734539438801,-500.0,0.00023799,2]
[345905379,1734539438810,-500.0,0.00023799,2]
[345905380,1734539438819,-500.0,0.00023799,2]
[345905381,1734539438828,-500.0,0.00023799,2]
[345905383,1734539438837,-500.0,0.00023799,2]
[345905385,1734539438846,-500.0,0.00023799,2]
[345905387,1734539438855,-500.0,0.00023799,2]
[345905389,1734539438865,-500.0,0.00023799,2]
[345905391,1734539438874,-500.0,0.00023799,2]
[345905393,1734539438886,-500.0,0.00023799,2]
[345905395,1734539438896,-500.0,0.00023799,2]
[345905397,1734539438906,-500.0,0.00023799,2]
[345905399,1734539438915,-500.0,0.00023799,2]
[345905401,1734539438925,-500.0,0.00023799,2]
[345905403,1734539438934,-500.0,0.00023799,2]
[345905405,1734539438944,-500.0,0.00023799,2]
[345905407,1734539438953,-500.0,0.00023799,2]
[345905409,1734539438962,-500.0,0.00023799,2]
[345905411,1734539438972,-500.0,0.00023799,2]
[345905413,1734539438981,-500.0,0.00023799,2]
[345905414,1734539438991,-500.0,0.00023799,2]
[345905416,1734539439001,-500.0,0.00023799,2]
[345905418,1734539439011,-500.0,0.00023799,2]
[345905420,1734539439020,-500.0,0.00023799,2]
[345905422,1734539439030,-500.0,0.00023799,2]
[345905424,1734539439040,-500.0,0.00023799,2]
[345905426,1734539439049,-500.0,0.00023799,2]
[345905428,1734539439058,-500.0,0.00023799,2]
[345905430,1734539439068,-500.0,0.00023799,2]
[345905432,1734539439077,-500.0,0.00023799,2]
[345905434,1734539439087,-500.0,0.00023799,2]
[345905436,1734539439096,-500.0,0.00023799,2]
[345905438,1734539439108,-500.0,0.00023799,2]
[345905439,1734539439118,-500.0,0.00023799,2]
[345905441,1734539439127,-500.0,0.00023799,2]
[345905443,1734539439143,-500.0,0.00023799,2]
[345905445,1734539439153,-500.0,0.00023799,2]
[345905447,1734539439163,-500.0,0.00023799,2]
[345905449,1734539439174,-500.0,0.00023799,2]
[345905451,1734539439184,-500.0,0.00023799,2]
[345905453,1734539439195,-500.0,0.00023799,2]
[345905455,1734539439205,-500.0,0.00023799,2]
[345905457,1734539439215,-500.0,0.00023799,2]
[345905459,1734539439225,-390.08548717,0.00023799,2]
[345905461,1734539439235,-500.0,0.00023799,2]
[345905463,1734539439245,-500.0,0.00023799,2]
[345905465,1734539439255,-500.0,0.00023799,2]
[345905467,1734539439265,-500.0,0.00023799,2]
[345905469,1734539439275,-500.0,0.00023799,2]
[345905471,1734539439284,-181.30247462,0.00023799,2]
[345905473,1734539439295,-500.0,0.00023799,2]
[345905475,1734539439305,-329.20376623,0.00023799,2]
[345905477,1734539439314,-358.51972468,0.00023799,2]
[345905479,1734539439324,-125608.24512814,0.000238,2]
[345905481,1734539439333,-10863.5928249,0.000238,2]
[345905483,1734539439343,-2724.40225126,0.000238,2]
[345905485,1734539439360,-10111.84324783,0.000238,2]
[345905487,1734539439371,-252.85032075,0.000238,2]
[345905489,1734539439387,-272.93729668,0.000238,2]
[345905537,1734539440358,-24084.37377947,0.000238,2]
[345906336,1734539607319,163.205614,0.00013973,2]
[345906338,1734539679213,1010.053,0.000255,120]
[345906340,1734539703243,15009.88051653,0.00022,60]
[345906358,1734540347716,1000.0,0.000255,120]
[345906366,1734540622925,163.357952,0.00013973,2]
[345906595,1734540638411,-172.840725,0.00022321,2]
[345906597,1734540638421,-2027.136657,0.00022333,2]
[345906599,1734540638430,-834.65927228,0.00022795,2]
[345906602,1734540638440,-234.25928356,0.000229,2]
[345906604,1734540638449,-834.65927228,0.00022904,2]
[345906606,1734540638458,-336.89,0.0002295,2]
[345906608,1734540638468,-1000.0,0.00023,23]
[345906609,1734540638477,-185.0,0.00023,2]
[345906611,1734540638486,-540.4174712,0.00023,2]
[345906613,1734540638496,-834.65927228,0.00023014,2]
[345906615,1734540638510,-600.83433069,0.00023041,2]
[345906617,1734540638520,-834.65927228,0.00023123,2]
[345906619,1734540638529,-600.83433069,0.00023151,2]
[345906621,1734540638539,-754.05231594,0.00023176,7]
[345906623,1734540638549,-300.0,0.00023199,2]
[345906625,1734540638559,-351.8818442,0.000232,2]
[345906627,1734540638568,-834.65927228,0.00023233,2]
[345906629,1734540638578,-358.1418325,0.00023241,2]
[345906631,1734540638589,-600.83433069,0.0002326,2]
[345906633,1734540638599,-834.65927228,0.00023342,2]
[345906635,1734540638608,-600.83433069,0.0002337,2]
[345906637,1734540638618,-185.0,0.00023374,2]
[345906639,1734540638627,-834.65927228,0.00023452,2]
[345906641,1734540638636,-143.73951023,0.00023479,2]
[345906643,1734540638649,-457.09482046,0.00023479,2]
[345906645,1734540638660,-2000.0,0.000235,2]
[345906647,1734540638670,-1704.00323048,0.00023558,2]
[345906649,1734540638680,-834.65927228,0.00023562,2]
[345906651,1734540638689,-600.83433069,0.00023589,2]
[345906654,1734540638699,-834.65927228,0.00023671,2]
[345906656,1734540638708,-600.83433069,0.00023699,2]
[345906658,1734540638718,-834.65927228,0.00023781,2]
[345906660,1734540638727,-500.0,0.00023799,2]
[345906662,1734540638736,-636.10711786,0.00023799,2]
[345906664,1734540638746,-254.33367717,0.00023799,2]
[345906666,1734540638756,-500.0,0.00023799,2]
[345906668,1734540638766,-500.0,0.00023799,2]
[345906670,1734540638776,-500.0,0.00023799,2]
[345906672,1734540638785,-500.0,0.00023799,2]
[345906674,1734540638794,-215.97347279,0.00023799,2]
[345906676,1734540638804,-500.0,0.00023799,2]
[345906678,1734540638813,-500.0,0.00023799,2]
[345906680,1734540638823,-500.0,0.00023799,2]
[345906682,1734540638832,-500.0,0.00023799,2]
[345906684,1734540638841,-500.0,0.00023799,2]
[345906686,1734540638851,-500.0,0.00023799,2]
[345906688,1734540638860,-500.0,0.00023799,2]
[345906690,1734540638870,-500.0,0.00023799,2]
[345906692,1734540638879,-500.0,0.00023799,2]
[345906694,1734540638889,-639.00854871,0.00023799,2]
[345906717,1734540639093,-500.0,0.00023799,2]
[345906719,1734540639104,-500.0,0.00023799,2]
[345906721,1734540639115,-500.0,0.00023799,2]
[345906723,1734540639124,-500.0,0.00023799,2]
[345906725,1734540639134,-500.0,0.00023799,2]
[345906727,1734540639143,-500.0,0.00023799,2]
[345906729,1734540639156,-500.0,0.00023799,2]
[345906731,1734540639166,-500.0,0.00023799,2]
[345906733,1734540639176,-500.0,0.00023799,2]
[345906735,1734540639185,-500.0,0.00023799,2]
[345906737,1734540639195,-500.0,0.00023799,2]
[345906739,1734540639204,-18690.70089871,0.000238,2]
[345906742,1734540639228,-5230.58044492,0.000238,2]
[345906744,1734540639240,-5447.5351529,0.000238,2]
[345906852,1734540640643,-2249.0,0.00023576,15]
[345906854,1734540640653,-78.67906,0.000238,2]
[345907741,1734541554171,163.362628,0.00013973,2]
[345907743,1734541589133,1076.26496299,0.000255,120]
[345907765,1734541836053,-518.0,0.00020922,10]
[345907767,1734541836063,-243.492253,0.00022,2]
[345907939,1734541838686,-1417.35456,0.00022,2]
[345907942,1734541838696,-171.0,0.00022,2]
[345907944,1734541838707,-167.0,0.00022,2]
[345907946,1734541838716,-323.078,0.0002295,2]
[345907948,1734541838725,-372.156,0.0002299,2]
[345907950,1734541838734,-171.0,0.00023014,2]
[345907952,1734541838743,-167.0,0.00023014,2]
[345907954,1734541838752,-151.50502773,0.00023441,2]
[345907956,1734541838761,-168.53955767,0.00023698,2]
[345907958,1734541838771,-300.0,0.00023789,2]
[345907960,1734541838780,-300.0,0.00023789,2]
[345907962,1734541838789,-15157.1206496,0.0002379,2]
[345907964,1734541838799,-500.0,0.00023798,2]
[345907966,1734541838809,-500.0,0.00023798,2]
[345907968,1734541838816,-500.0,0.00023798,2]
[345907970,1734541838824,-327.55938514,0.00023798,2]
[345908705,1734541846597,-172.44061486,0.00023798,2]
[345908707,1734541846607,-500.0,0.00023798,2]
[345908709,1734541846616,-500.0,0.00023798,2]
[345908711,1734541846625,-416.21697125,0.00023798,2]
[345908713,1734541846634,-313.90085488,0.00023798,2]
[345908715,1734541846643,-500.0,0.00023798,2]
[345908717,1734541846653,-605.3657253,0.00023798,2]
[345908719,1734541846663,-500.0,0.00023798,2]
[345908721,1734541846672,-500.0,0.00023798,2]
[345908723,1734541846681,-500.0,0.00023798,2]
[345908725,1734541846690,-500.0,0.00023798,2]
[345908726,1734541846699,-500.0,0.00023798,2]
[345908728,1734541846709,-500.0,0.00023798,2]
[345908730,1734541846718,-500.0,0.00023798,2]
[345908732,1734541846727,-500.0,0.00023798,2]
[345908734,1734541846736,-500.0,0.00023798,2]
[345908736,1734541846746,-500.0,0.00023798,2]
[345908738,1734541846755,-500.0,0.00023798,2]
[345908740,1734541846764,-500.0,0.00023798,2]
[345908742,1734541846774,-500.0,0.00023798,2]
[345908744,1734541846783,-500.0,0.00023798,2]
[345908746,1734541846792,-500.0,0.00023798,2]
[345908748,1734541846801,-500.0,0.00023798,2]
[345908750,1734541846810,-376.8424957,0.00023798,2]
[345908752,1734541846819,-500.0,0.00023798,2]
[345908754,1734541846828,-286.30967348,0.00023798,2]
[345908756,1734541846838,-500.0,0.00023798,2]
[345908758,1734541846848,-500.0,0.00023798,2]
[345908760,1734541846860,-500.0,0.00023798,2]
[345908762,1734541846869,-500.0,0.00023798,2]
[345908764,1734541846879,-500.0,0.00023798,2]
[345908766,1734541846888,-519.36202496,0.00023798,2]
[345908768,1734541846899,-66657.63083436,0.00023799,2]
[345908770,1734541846910,-342.2157765,0.00023799,2]
[345908773,1734541846926,-32858.06644801,0.00023799,2]
[345908775,1734541846936,-9703.18919026,0.00023799,2]
[345908777,1734541846945,-82623.85071396,0.000238,2]
[345908779,1734541846954,-500.0,0.000238,2]
[345908781,1734541846964,-509.34422276,0.000238,2]
[345908783,1734541846973,-500.0,0.000238,2]
[345908785,1734541846983,-201.08838092,0.000238,2]
[345908787,1734541846992,-600.83433069,0.00023808,2]
[345908789,1734541847001,-834.65927228,0.0002389,2]
[345908791,1734541847011,-600.83433069,0.00023918,2]
[345908792,1734541847020,-1000.0,0.0002394,7]
[345908794,1734541847030,-249.1237037,0.0002399,2]
[345908796,1734541847040,-1000.0,0.0002399,10]
[345908799,1734541847049,-1000.0,0.00024,24]
[345908801,1734541847059,-19209.83946724,0.00024,4]
[345908802,1734541847068,-834.65927228,0.00024,2]
[345908804,1734541847077,-153.0,0.00024,2]
[345908806,1734541847087,-351.6405177,0.00024,2]
[345908808,1734541847097,-151.0,0.00024,7]
[345908810,1734541847106,-151.0,0.00024,7]
[345908812,1734541847116,-151.0,0.00024,7]
[345908815,1734541847126,-151.0,0.00024,7]
[345908816,1734541847135,-151.0,0.00024,7]
[345908819,1734541847144,-151.0,0.00024,7]
[345908821,1734541847154,-254.953492,0.00024,7]
[345908823,1734541847163,-254.953492,0.00024,7]
[345908825,1734541847172,-151.0,0.00024,7]
[345908827,1734541847181,-851.174979,0.00024,7]
[345908829,1734541847191,-200.819881,0.00024,7]
[345908831,1734541847201,-851.174979,0.00024,7]
[345908833,1734541847210,-200.819881,0.00024,7]
[345908835,1734541847220,-151.0,0.00024,7]
[345908837,1734541847229,-151.0,0.00024,7]
[345908839,1734541847238,-151.083896,0.00024,7]
[345908841,1734541847247,-151.083896,0.00024,7]
[345908843,1734541847257,-159.469434,0.00024,7]
[345908845,1734541847266,-676.622225,0.00024,7]
[345908847,1734541847275,-676.622225,0.00024,7]
[345908849,1734541847284,-152.459658,0.00024,7]
[345908851,1734541847293,-574.385485,0.00024,7]
[345908853,1734541847303,-151.0,0.00024,7]
[345908855,1734541847312,-574.385485,0.00024,7]
[345908856,1734541847321,-152.397195,0.00024,7]
[345908858,1734541847330,-151.0,0.00024,7]
[345908860,1734541847339,-151.0,0.00024,7]
[345908862,1734541847348,-151.0,0.00024,7]
[345908863,1734541847357,-162.281297,0.00024,7]
[345908865,1734541847368,-646.448037,0.00024,7]
[345908866,1734541847377,-646.448037,0.00024,7]
[345908868,1734541847387,-260.98407,0.00024,7]
[345908870,1734541847396,-153.14053,0.00024,7]
[345908872,1734541847405,-260.98407,0.00024,7]
[345908874,1734541847414,-474.320224,0.00024,7]
[345908876,1734541847423,-600.83433069,0.00024027,2]
[345908878,1734541847432,-178.676,0.00024039,2]
[345908879,1734541847441,-151.157,0.00024039,2]
[345908881,1734541847450,-150.742,0.00024039,2]
[345908882,1734541847459,-533.0,0.00024039,2]
[345908883,1734541847467,-2154.0,0.00024039,2]
[345908884,1734541847476,-2368.0,0.00024039,2]
[345908885,1734541847485,-187.0,0.000241,2]
[345908886,1734541847494,-260.98407,0.00024109,7]
[345908887,1734541847503,-260.98407,0.00024109,7]
[345908888,1734541847512,-2288.43,0.00024109,2]
[345908889,1734541847521,-161.64956559,0.00024134,2]
[345908891,1734541847531,-600.83433069,0.00024137,2]
[345908893,1734541847540,-151.0,0.00024137,7]
[345908895,1734541847549,-151.0,0.00024137,7]
[345908897,1734541847558,-151.0,0.00024137,7]
[345908899,1734541847567,-151.0,0.00024137,7]
[345908901,1734541847577,-199.440117,0.00024137,7]
[345908903,1734541847586,-646.448037,0.00024137,7]
[345908905,1734541847595,-646.448037,0.00024137,7]
[345908907,1734541847605,-474.320224,0.00024137,7]
[345908909,1734541847614,-202.48843904,0.0002416,2]
[345908911,1734541847623,-312.86508621,0.00024167,2]
[345908913,1734541847632,-285.30364244,0.00024167,2]
[345908915,1734541847641,-315.28444541,0.00024167,2]
[345908917,1734541847650,-151.0,0.00024168,7]
[345908919,1734541847659,-271.40487566,0.00024168,7]
[345908921,1734541847668,-238.846551,0.00024168,7]
[345908923,1734541847677,-238.846551,0.00024168,7]
[345908925,1734541847686,-238.846551,0.00024168,7]
[345908927,1734541847695,-238.846551,0.00024168,7]
[345908929,1734541847704,-238.846551,0.00024168,7]
[345908930,1734541847713,-238.846551,0.00024168,7]
[345908932,1734541847723,-152.325916,0.00024168,7]
[345908935,1734541847732,-151.0,0.00024168,7]
[345908936,1734541847741,-151.0,0.00024168,7]
[345908938,1734541847750,-185.012471,0.00024168,7]
[345908941,1734541847760,-185.012471,0.00024168,7]
[345908943,1734541847770,-185.012471,0.00024168,7]
[345908944,1734541847779,-185.012471,0.00024168,7]
[345908947,1734541847789,-151.0,0.00024168,7]
[345908949,1734541847798,-157.455989,0.00024168,7]
[345908951,1734541847807,-153.663983,0.00024168,7]
[345908953,1734541847816,-153.663983,0.00024168,7]
[345908955,1734541847826,-153.663983,0.00024168,7]
[345908957,1734541847836,-153.663983,0.00024168,7]
[345908959,1734541847845,-153.663983,0.00024168,7]
[345908960,1734541847857,-153.663983,0.00024168,7]
[345908962,1734541847867,-236.90843,0.00024168,7]
[345908964,1734541847876,-188.62914,0.00024168,7]
[345908966,1734541847885,-188.62914,0.00024168,7]
[345908968,1734541847894,-429.950692,0.00024168,7]